[Event "Elitserien 2019/2020, round 7-9"]
[Site "Elite stadshotellet, Kungsgatan 6, Vaxjo, Sweden"]
[Date "2020.10.17"]
[Round "2.12"]
[White "Lokander, Martin"]
[Black "Kenneskog, Theodor"]
[Result "1-0"]
[TimeControl "90 minutes for 40 moves + 30 minutes for the rest of the game + 30 seconds per move from move one."]
[WhiteTitle "IM"]
[BlackTitle "FM"]
[WhiteFideId "1709569"]
[BlackFideId "1715011"]
[WhiteElo "2399"]
[BlackElo "2302"]

1. d4 {[%clk 01:28:11]} {[%emt 00:02:48]} Nf6 {[%clk 01:30:53]} {[%emt
00:00:07]} 2. c4 {[%clk 01:28:32]} {[%emt 00:00:10]} e6 {[%clk 01:31:13]}
{[%emt 00:00:10]} 3. Nf3 {[%clk 01:28:03]} {[%emt 00:00:59]} d5 {[%clk
01:31:36]} {[%emt 00:00:07]} 4. Nc3 {[%clk 01:28:29]} {[%emt 00:00:04]} dxc4
{[%clk 01:31:56]} {[%emt 00:00:09]} 5. e4 {[%clk 01:27:09]} {[%emt 00:01:51]}
Bb4 {[%clk 01:32:20]} {[%emt 00:00:06]} 6. Bxc4 {[%clk 01:23:42]} {[%emt
00:03:57]} Nxe4 {[%clk 01:32:42]} {[%emt 00:00:07]} 7. O-O {[%clk 01:23:43]}
{[%emt 00:00:29]} Nxc3 {[%clk 01:32:41]} {[%emt 00:00:31]} 8. bxc3 {[%clk
01:24:09]} {[%emt 00:00:04]} Be7 {[%clk 01:27:17]} {[%emt 00:05:53]} 9. Ne5
{[%clk 01:22:30]} {[%emt 00:02:09]} O-O {[%clk 01:27:29]} {[%emt 00:00:19]} 10.
Qg4 {[%clk 01:22:12]} {[%emt 00:00:48]} Nc6 {[%clk 01:27:24]} {[%emt 00:00:34]}
11. Re1 {[%clk 01:18:54]} {[%emt 00:03:48]} f5 {[%clk 01:27:41]} {[%emt
00:00:13]} 12. Qf3 {[%clk 01:18:41]} {[%emt 00:00:43]} Nxe5 {[%clk 01:27:50]}
{[%emt 00:00:21]} 13. Rxe5 {[%clk 01:19:01]} {[%emt 00:00:10]} Bd6 {[%clk
01:26:14]} {[%emt 00:02:06]} 14. Re2 {[%clk 01:10:18]} {[%emt 00:09:14]} Qf6
{[%clk 01:20:46]} {[%emt 00:05:57]} 15. Bf4 {[%clk 01:07:14]} {[%emt 00:03:35]}
Bxf4 {[%clk 00:49:06]} {[%emt 00:32:10]} 16. Qxf4 {[%clk 01:07:39]} {[%emt
00:00:05]} c5 {[%clk 00:49:29]} {[%emt 00:00:06]} 17. Rae1 {[%clk 01:05:16]}
{[%emt 00:02:53]} cxd4 {[%clk 00:47:31]} {[%emt 00:02:28]} 18. cxd4 {[%clk
00:59:42]} {[%emt 00:06:04]} Kh8 {[%clk 00:47:31]} {[%emt 00:00:31]} 19. Bxe6
{[%clk 00:58:40]} {[%emt 00:01:32]} Re8 {[%clk 00:41:26]} {[%emt 00:06:34]} 20.
d5 {[%clk 00:54:26]} {[%emt 00:04:44]} Bxe6 {[%clk 00:39:03]} {[%emt 00:02:53]}
21. dxe6 {[%clk 00:52:46]} {[%emt 00:02:10]} Re7 {[%clk 00:38:13]} {[%emt
00:01:19]} 22. Re5 {[%clk 00:52:12]} {[%emt 00:01:04]} Rf8 {[%clk 00:32:34]}
{[%emt 00:06:09]} 23. h4 {[%clk 00:50:59]} {[%emt 00:01:43]} h6 {[%clk
00:30:07]} {[%emt 00:02:57]} 24. h5 {[%clk 00:46:37]} {[%emt 00:04:53]} Qg5
{[%clk 00:23:58]} {[%emt 00:06:39]} 25. Qf3 {[%clk 00:45:27]} {[%emt 00:01:39]}
Kh7 {[%clk 00:20:14]} {[%emt 00:04:14]} 26. Qa3 {[%clk 00:39:32]} {[%emt
00:06:26]} b6 {[%clk 00:17:37]} {[%emt 00:03:07]} 27. R1e3 {[%clk 00:34:00]}
{[%emt 00:06:01]} Rd8 {[%clk 00:11:28]} {[%emt 00:06:38]} 28. Re1 {[%clk
00:28:14]} {[%emt 00:06:17]} Rde8 {[%clk 00:10:58]} {[%emt 00:01:00]} 29. Qf3
{[%clk 00:26:51]} {[%emt 00:01:52]} Qg4 {[%clk 00:10:08]} {[%emt 00:01:20]} 30.
Qxg4 {[%clk 00:09:24]} {[%emt 00:17:58]} fxg4 {[%clk 00:10:35]} {[%emt
00:00:03]} 31. R5e4 {[%clk 00:09:36]} {[%emt 00:00:18]} g6 {[%clk 00:07:28]}
{[%emt 00:03:37]} 32. hxg6+ {[%clk 00:09:36]} {[%emt 00:00:30]} Kxg6 {[%clk
00:07:56]} {[%emt 00:00:02]} 33. Rxg4+ {[%clk 00:10:01]} {[%emt 00:00:05]} Kf5
{[%clk 00:07:51]} {[%emt 00:00:34]} 34. Ra4 {[%clk 00:09:58]} {[%emt 00:00:33]}
a5 {[%clk 00:08:11]} {[%emt 00:00:10]} 35. g4+ {[%clk 00:09:35]} {[%emt
00:00:53]} Kf6 {[%clk 00:08:35]} {[%emt 00:00:06]} 36. Rf4+ {[%clk 00:09:27]}
{[%emt 00:00:38]} Kg6 {[%clk 00:09:00]} {[%emt 00:00:05]} 37. Rfe4 {[%clk
00:08:49]} {[%emt 00:01:09]} Kf6 {[%clk 00:09:25]} {[%emt 00:00:04]} 38. Rb1
{[%clk 00:03:58]} {[%emt 00:05:21]} Rxe6 {[%clk 00:09:46]} {[%emt 00:00:09]} 39.
Rxe6+ {[%clk 00:01:23]} {[%emt 00:03:06]} Rxe6 {[%clk 00:10:12]} {[%emt
00:00:04]} 40. Kg2 {[%clk 00:01:07]} {[%emt 00:00:46]} Kg7 {[%clk 00:01:05]}
{[%emt 00:09:36]} 41. f4 {[%clk 00:00:36]} {[%emt 00:01:02]} Re2+ {[%clk
00:15:24]} {[%emt 00:16:10]} 42. Kf3 {[%clk 00:30:53]} {[%emt 00:00:13]} Rxa2
{[%clk 00:15:46]} {[%emt 00:00:09]} 43. Rxb6 {[%clk 00:31:01]} {[%emt
00:00:21]} a4 {[%clk 00:15:01]} {[%emt 00:01:14]} 44. Ke4 {[%clk 00:29:10]}
{[%emt 00:02:22]} a3 {[%clk 00:15:25]} {[%emt 00:00:06]} 45. Ra6 {[%clk
00:28:54]} {[%emt 00:00:46]} Rg2 {[%clk 00:14:36]} {[%emt 00:01:19]} 46. Kf3
{[%clk 00:28:06]} {[%emt 00:01:19]} Ra2 {[%clk 00:14:55]} {[%emt 00:00:11]} 47.
Ra8 {[%clk 00:21:35]} {[%emt 00:07:02]} Ra1 {[%clk 00:13:30]} {[%emt 00:01:55]}
48. Ke4 {[%clk 00:21:44]} {[%emt 00:00:21]} a2 {[%clk 00:13:55]} {[%emt
00:00:05]} 49. Kf5 {[%clk 00:21:54]} {[%emt 00:00:20]} Kf7 {[%clk 00:14:01]}
{[%emt 00:00:23]} 50. Ra7+ {[%clk 00:22:20]} {[%emt 00:00:05]} Kf8 {[%clk
00:13:40]} {[%emt 00:00:51]} 51. Kf6 {[%clk 00:22:00]} {[%emt 00:00:50]} Ke8
{[%clk 00:12:45]} {[%emt 00:01:26]} 52. Ra8+ {[%clk 00:19:53]} {[%emt
00:02:36]} Kd7 {[%clk 00:13:10]} {[%emt 00:00:05]} 53. f5 {[%clk 00:20:08]}
{[%emt 00:00:15]} Kd6 {[%clk 00:04:48]} {[%emt 00:08:52]} 54. Ra5 {[%clk
00:17:42]} {[%emt 00:02:56]} Kd7 {[%clk 00:04:02]} {[%emt 00:01:16]} 55. Kf7
{[%clk 00:17:48]} {[%emt 00:00:24]} h5 {[%clk 00:03:21]} {[%emt 00:01:11]} 56.
g5 {[%clk 00:14:55]} {[%emt 00:03:23]} Rf1 {[%clk 00:02:48]} {[%emt 00:01:03]}
57. Rxa2 {[%clk 00:15:14]} {[%emt 00:00:11]} Rxf5 {[%clk 00:03:15]} {[%emt
00:00:03]} 58. Kg6 {[%clk 00:15:40]} {[%emt 00:00:04]} Rc5 {[%clk 00:01:55]}
{[%emt 00:01:50]} 59. Kxh5 {[%clk 00:15:26]} {[%emt 00:00:43]} Ke7 {[%clk
00:02:08]} {[%emt 00:00:18]} 60. Rf2 {[%clk 00:14:56]} {[%emt 00:01:00]} Rc1
{[%clk 00:01:39]} {[%emt 00:00:59]} 61. Kh6 {[%clk 00:15:02]} {[%emt 00:00:24]}
Rg1 {[%clk 00:00:57]} {[%emt 00:01:12]} 62. g6 {[%clk 00:15:24]} {[%emt
00:00:08]} Ke6 {[%clk 00:01:06]} {[%emt 00:00:21]} 63. Kg7 {[%clk 00:15:37]}
{[%emt 00:00:16]} Rg3 {[%clk 00:01:20]} {[%emt 00:00:17]} 64. Kh7 {[%clk
00:15:45]} {[%emt 00:00:21]} Ke7 {[%clk 00:01:28]} {[%emt 00:00:23]} 65. g7
{[%clk 00:15:59]} {[%emt 00:00:17]} Rh3 {[%clk 00:01:54]} {[%emt 00:00:03]} 66.
Kg8 {[%clk 00:16:23]} {[%emt 00:00:06]} Rh1 {[%clk 00:01:34]} {[%emt 00:00:50]}
67. Re2+ {[%clk 00:16:42]} {[%emt 00:00:11]} Kd7 {[%clk 00:01:56]} {[%emt
00:00:07]} 68. Re4 {[%clk 00:17:08]} {[%emt 00:00:05]} 1-0

[Event "Elitserien 2019/2020, round 7-9"]
[Site "Elite stadshotellet, Kungsgatan 6, Vaxjo, Sweden"]
[Date "2020.10.17"]
[Round "2.13"]
[White "Bator, Robert"]
[Black "Arman, Deniz"]
[Result "0-1"]
[TimeControl "90 minutes for 40 moves + 30 minutes for the rest of the game + 30 seconds per move from move one."]
[WhiteTitle "IM"]
[BlackTitle "FM"]
[WhiteFideId "1700405"]
[BlackFideId "6302106"]
[WhiteElo "2365"]
[BlackElo "2318"]

1. Nf3 {[%clk 01:30:37]} {[%emt 00:00:22]} c5 {[%clk 01:30:38]} {[%emt
00:00:21]} 2. c4 {[%clk 01:24:01]} {[%emt 00:07:06]} Nc6 {[%clk 01:30:56]}
{[%emt 00:00:12]} 3. Nc3 {[%clk 01:22:30]} {[%emt 00:02:01]} e5 {[%clk
01:27:40]} {[%emt 00:03:45]} 4. e3 {[%clk 01:18:24]} {[%emt 00:04:36]} Nf6
{[%clk 01:26:32]} {[%emt 00:01:38]} 5. d4 {[%clk 01:18:08]} {[%emt 00:00:47]}
cxd4 {[%clk 01:26:31]} {[%emt 00:00:31]} 6. exd4 {[%clk 01:18:01]} {[%emt
00:00:37]} e4 {[%clk 01:26:53]} {[%emt 00:00:07]} 7. Ne5 {[%clk 01:14:28]}
{[%emt 00:04:04]} Bb4 {[%clk 01:26:00]} {[%emt 00:01:22]} 8. a3 {[%clk
01:05:19]} {[%emt 00:09:39]} Bxc3+ {[%clk 01:23:01]} {[%emt 00:03:29]} 9. bxc3
{[%clk 01:05:37]} {[%emt 00:00:13]} Qa5 {[%clk 01:23:18]} {[%emt 00:00:12]} 10.
Nxc6 {[%clk 01:04:19]} {[%emt 00:01:48]} dxc6 {[%clk 01:22:13]} {[%emt
00:01:35]} 11. Qb3 {[%clk 01:02:14]} {[%emt 00:02:35]} O-O {[%clk 01:18:53]}
{[%emt 00:03:50]} 12. Be2 {[%clk 00:57:54]} {[%emt 00:04:51]} Qf5 {[%clk
00:57:10]} {[%emt 00:22:12]} 13. h3 {[%clk 00:52:37]} {[%emt 00:05:48]} Qg6
{[%clk 00:54:39]} {[%emt 00:03:01]} 14. g3 {[%clk 00:47:42]} {[%emt 00:05:26]}
b5 {[%clk 00:46:09]} {[%emt 00:09:00]} 15. cxb5 {[%clk 00:43:18]} {[%emt
00:04:54]} Be6 {[%clk 00:27:17]} {[%emt 00:19:21]} 16. c4 {[%clk 00:42:11]}
{[%emt 00:01:38]} cxb5 {[%clk 00:26:49]} {[%emt 00:00:57]} 17. Qxb5 {[%clk
00:33:53]} {[%emt 00:08:48]} e3 {[%clk 00:26:08]} {[%emt 00:01:10]} 18. O-O
{[%clk 00:23:51]} {[%emt 00:10:31]} Bxh3 {[%clk 00:24:05]} {[%emt 00:02:34]} 19.
Kh2 {[%clk 00:18:09]} {[%emt 00:06:13]} Bxf1 {[%clk 00:23:20]} {[%emt
00:01:15]} 20. Bxf1 {[%clk 00:18:33]} {[%emt 00:00:06]} Ng4+ {[%clk 00:23:33]}
{[%emt 00:00:17]} 21. Kg2 {[%clk 00:17:03]} {[%emt 00:02:00]} Qe4+ {[%clk
00:22:03]} {[%emt 00:01:59]} 0-1

[Event "Elitserien 2019/2020, round 7-9"]
[Site "Elite stadshotellet, Kungsgatan 6, Vaxjo, Sweden"]
[Date "2020.10.17"]
[Round "2.14"]
[White "Ertan, Can"]
[Black "Tuomainen, Felix"]
[Result "1/2-1/2"]
[TimeControl "90 minutes for 40 moves + 30 minutes for the rest of the game + 30 seconds per move from move one."]
[WhiteTitle "IM"]
[BlackTitle "FM"]
[WhiteFideId "6306330"]
[BlackFideId "1720813"]
[WhiteElo "2387"]
[BlackElo "2208"]

1. e4 {[%clk 01:30:58]} {[%emt 00:00:02]} e6 {[%clk 01:30:51]} {[%emt
00:00:09]} 2. d4 {[%clk 01:31:23]} {[%emt 00:00:04]} d5 {[%clk 01:31:16]}
{[%emt 00:00:06]} 3. Nc3 {[%clk 01:31:43]} {[%emt 00:00:10]} dxe4 {[%clk
01:31:26]} {[%emt 00:00:20]} 4. Nxe4 {[%clk 01:32:07]} {[%emt 00:00:06]} Nd7
{[%clk 01:31:52]} {[%emt 00:00:04]} 5. Nf3 {[%clk 01:30:56]} {[%emt 00:01:41]}
Ngf6 {[%clk 01:32:14]} {[%emt 00:00:07]} 6. Nxf6+ {[%clk 01:30:49]} {[%emt
00:00:37]} Nxf6 {[%clk 01:32:39]} {[%emt 00:00:05]} 7. Bd3 {[%clk 01:30:46]}
{[%emt 00:00:33]} c5 {[%clk 01:32:38]} {[%emt 00:00:31]} 8. O-O {[%clk
01:30:55]} {[%emt 00:00:21]} cxd4 {[%clk 01:27:19]} {[%emt 00:05:49]} 9. Nxd4
{[%clk 01:31:18]} {[%emt 00:00:07]} Bc5 {[%clk 01:25:20]} {[%emt 00:02:27]} 10.
Be3 {[%clk 01:31:29]} {[%emt 00:00:22]} Bxd4 {[%clk 01:16:49]} {[%emt
00:09:00]} 11. Bxd4 {[%clk 01:31:52]} {[%emt 00:00:07]} O-O {[%clk 01:17:11]}
{[%emt 00:00:07]} 12. Re1 {[%clk 01:31:21]} {[%emt 00:01:00]} g6 {[%clk
01:07:31]} {[%emt 00:10:11]} 13. c3 {[%clk 01:30:38]} {[%emt 00:01:14]} Nd5
{[%clk 00:59:55]} {[%emt 00:08:03]} 14. Qf3 {[%clk 01:28:15]} {[%emt 00:02:54]}
f6 {[%clk 00:50:48]} {[%emt 00:09:39]} 15. Be4 {[%clk 01:20:25]} {[%emt
00:08:19]} Qd7 {[%clk 00:41:20]} {[%emt 00:09:56]} 16. Rad1 {[%clk 01:18:29]}
{[%emt 00:02:28]} Qf7 {[%clk 00:32:18]} {[%emt 00:09:31]} 17. Bc5 {[%clk
01:18:38]} {[%emt 00:00:23]} Ne7 {[%clk 00:30:18]} {[%emt 00:02:26]} 18. Bc2
{[%clk 01:10:42]} {[%emt 00:08:29]} Re8 {[%clk 00:27:47]} {[%emt 00:02:59]} 19.
b4 {[%clk 00:39:27]} {[%emt 00:31:48]} Nc6 {[%clk 00:22:32]} {[%emt 00:05:43]}
20. b5 {[%clk 00:39:46]} {[%emt 00:00:13]} Ne5 {[%clk 00:22:30]} {[%emt
00:00:31]} 21. Qe4 {[%clk 00:40:06]} {[%emt 00:00:12]} a6 {[%clk 00:20:43]}
{[%emt 00:02:17]} 22. a4 {[%clk 00:34:35]} {[%emt 00:06:01]} axb5 {[%clk
00:20:15]} {[%emt 00:00:58]} 23. axb5 {[%clk 00:35:01]} {[%emt 00:00:04]} Ra5
{[%clk 00:17:00]} {[%emt 00:03:41]} 24. Bb4 {[%clk 00:32:29]} {[%emt 00:03:05]}
Ra2 {[%clk 00:14:12]} {[%emt 00:03:18]} 25. h3 {[%clk 00:32:07]} {[%emt
00:00:52]} b6 {[%clk 00:14:09]} {[%emt 00:00:34]} 26. Re2 {[%clk 00:28:27]}
{[%emt 00:04:10]} Bb7 {[%clk 00:13:57]} {[%emt 00:00:42]} 27. Qd4 {[%clk
00:28:34]} {[%emt 00:00:22]} Bf3 {[%clk 00:13:17]} {[%emt 00:01:11]} 28. Qe3
{[%clk 00:18:21]} {[%emt 00:10:43]} Bxe2 {[%clk 00:13:34]} {[%emt 00:00:13]} 29.
Qxe2 {[%clk 00:18:49]} {[%emt 00:00:03]} Qc7 {[%clk 00:12:00]} {[%emt
00:02:02]} 30. f4 {[%clk 00:18:28]} {[%emt 00:00:53]} Nc4 {[%clk 00:11:42]}
{[%emt 00:00:43]} 31. Qe4 {[%clk 00:17:56]} {[%emt 00:01:06]} Rxc2 {[%clk
00:11:29]} {[%emt 00:00:43]} 32. Qxc2 {[%clk 00:17:20]} {[%emt 00:01:06]} Ne3
{[%clk 00:11:54]} {[%emt 00:00:05]} 33. Qe2 {[%clk 00:15:13]} {[%emt 00:02:36]}
Nxd1 {[%clk 00:12:17]} {[%emt 00:00:08]} 34. Qxd1 {[%clk 00:15:38]} {[%emt
00:00:04]} Qxf4 {[%clk 00:10:19]} {[%emt 00:02:29]} 35. Qd7 {[%clk 00:15:52]}
{[%emt 00:00:16]} Qe3+ {[%clk 00:10:37]} {[%emt 00:00:11]} 36. Kh2 {[%clk
00:16:15]} {[%emt 00:00:07]} Qe5+ {[%clk 00:10:55]} {[%emt 00:00:12]} 37. Kh1
{[%clk 00:15:35]} {[%emt 00:01:10]} Ra8 {[%clk 00:10:56]} {[%emt 00:00:26]} 38.
Ba3 {[%clk 00:16:03]} {[%emt 00:00:06]} Qe1+ {[%clk 00:09:34]} {[%emt
00:01:50]} 39. Kh2 {[%clk 00:16:28]} {[%emt 00:00:06]} Qe5+ {[%clk 00:10:01]}
{[%emt 00:00:03]} 40. Kh1 {[%clk 00:16:55]} {[%emt 00:00:03]} Qd5 {[%clk
00:06:52]} {[%emt 00:03:35]} 41. Qe7 {[%clk 00:16:58]} {[%emt 00:00:31]} e5
{[%clk 00:01:27]} {[%emt 00:05:55]} 42. Bb4 {[%clk 00:15:34]} {[%emt 00:01:53]}
e4 {[%clk 00:21:55]} {[%emt 00:10:02]} 43. Qxf6 {[%clk 00:43:48]} {[%emt
00:02:16]} e3 {[%clk 00:20:58]} {[%emt 00:01:27]} 44. Qe7 {[%clk 00:41:01]}
{[%emt 00:03:15]} Qf7 {[%clk 00:17:44]} {[%emt 00:03:40]} 45. Qxe3 {[%clk
00:38:11]} {[%emt 00:03:26]} Ra1+ {[%clk 00:17:50]} {[%emt 00:00:24]} 46. Kh2
{[%clk 00:38:38]} {[%emt 00:00:04]} Qc7+ {[%clk 00:18:14]} {[%emt 00:00:03]} 47.
g3 {[%clk 00:39:05]} {[%emt 00:00:05]} Qf7 {[%clk 00:15:18]} {[%emt 00:03:24]}
48. c4 {[%clk 00:39:31]} {[%emt 00:00:06]} Ra2+ {[%clk 00:14:44]} {[%emt
00:01:03]} 49. Kg1 {[%clk 00:39:47]} {[%emt 00:00:14]} h5 {[%clk 00:13:28]}
{[%emt 00:01:48]} 50. Qxb6 {[%clk 00:38:16]} {[%emt 00:02:01]} Ra1+ {[%clk
00:08:14]} {[%emt 00:05:43]} 51. Kh2 {[%clk 00:38:08]} {[%emt 00:00:37]} Ra2+
{[%clk 00:03:46]} {[%emt 00:04:59]} 52. Kg1 {[%clk 00:38:19]} {[%emt 00:00:18]}
Ra1+ {[%clk 00:01:44]} {[%emt 00:02:33]} 53. Kh2 {[%clk 00:38:42]} {[%emt
00:00:07]} Ra2+ {[%clk 00:01:05]} {[%emt 00:01:10]} 1/2-1/2

[Event "Elitserien 2019/2020, round 7-9"]
[Site "Elite stadshotellet, Kungsgatan 6, Vaxjo, Sweden"]
[Date "2020.10.17"]
[Round "2.15"]
[White "Crevatin, Leo"]
[Black "Olund, Joar"]
[Result "1/2-1/2"]
[TimeControl "90 minutes for 40 moves + 30 minutes for the rest of the game + 30 seconds per move from move one."]
[WhiteTitle "CM"]
[BlackTitle "FM"]
[WhiteFideId "1726307"]
[BlackFideId "1714848"]
[WhiteElo "2247"]
[BlackElo "2322"]

1. d4 {[%clk 01:30:56]} {[%emt 00:00:02]} d5 {[%clk 01:28:18]} {[%emt
00:02:43]} 2. c4 {[%clk 01:30:50]} {[%emt 00:00:35]} dxc4 {[%clk 01:28:36]}
{[%emt 00:00:13]} 3. e4 {[%clk 01:31:14]} {[%emt 00:00:06]} Nf6 {[%clk
01:29:01]} {[%emt 00:00:06]} 4. e5 {[%clk 01:31:40]} {[%emt 00:00:04]} Nd5
{[%clk 01:29:27]} {[%emt 00:00:03]} 5. Bxc4 {[%clk 01:32:05]} {[%emt 00:00:05]}
Nb6 {[%clk 01:29:53]} {[%emt 00:00:05]} 6. Bd3 {[%clk 01:31:24]} {[%emt
00:01:10]} Nc6 {[%clk 01:29:52]} {[%emt 00:00:30]} 7. Ne2 {[%clk 01:31:41]}
{[%emt 00:00:13]} Nb4 {[%clk 01:30:10]} {[%emt 00:00:13]} 8. Be4 {[%clk
01:30:42]} {[%emt 00:01:28]} N4d5 {[%clk 01:22:38]} {[%emt 00:08:04]} 9. O-O
{[%clk 01:28:03]} {[%emt 00:03:09]} Be6 {[%clk 01:11:36]} {[%emt 00:11:31]} 10.
Nd2 {[%clk 01:18:14]} {[%emt 00:10:19]} Qc8 {[%clk 00:59:27]} {[%emt 00:12:40]}
11. Nb3 {[%clk 01:09:14]} {[%emt 00:09:31]} Bf5 {[%clk 00:49:40]} {[%emt
00:10:17]} 12. Bxf5 {[%clk 01:04:00]} {[%emt 00:05:44]} Qxf5 {[%clk 00:49:53]}
{[%emt 00:00:17]} 13. Nc5 {[%clk 01:04:07]} {[%emt 00:00:23]} e6 {[%clk
00:43:57]} {[%emt 00:06:26]} 14. Ng3 {[%clk 01:02:44]} {[%emt 00:01:53]} Qg6
{[%clk 00:44:01]} {[%emt 00:00:26]} 15. Nxb7 {[%clk 01:00:13]} {[%emt
00:03:02]} Bb4 {[%clk 00:35:13]} {[%emt 00:09:18]} 16. Bd2 {[%clk 00:52:11]}
{[%emt 00:08:31]} Bxd2 {[%clk 00:30:07]} {[%emt 00:05:37]} 17. Qxd2 {[%clk
00:52:33]} {[%emt 00:00:08]} O-O {[%clk 00:27:43]} {[%emt 00:02:54]} 18. Rac1
{[%clk 00:49:28]} {[%emt 00:03:35]} Rfc8 {[%clk 00:24:29]} {[%emt 00:03:44]} 19.
Na5 {[%clk 00:43:26]} {[%emt 00:06:31]} Ne7 {[%clk 00:24:07]} {[%emt 00:00:54]}
20. Nc6 {[%clk 00:41:33]} {[%emt 00:02:22]} Nbd5 {[%clk 00:20:31]} {[%emt
00:04:06]} 21. Nxe7+ {[%clk 00:39:58]} {[%emt 00:02:05]} Nxe7 {[%clk 00:20:21]}
{[%emt 00:00:41]} 22. Rc5 {[%clk 00:39:15]} {[%emt 00:01:13]} c6 {[%clk
00:15:08]} {[%emt 00:05:44]} 23. Qc2 {[%clk 00:35:23]} {[%emt 00:04:22]} Qxc2
24. Rxc2 {[%clk 00:35:52]} Rd8 {[%clk 00:15:34]} {[%emt 00:00:18]} 25. Ne2
{[%clk 00:34:18]} {[%emt 00:02:03]} Rd5 {[%clk 00:14:37]} {[%emt 00:01:27]} 26.
Rfc1 {[%clk 00:33:28]} {[%emt 00:01:19]} Rad8 {[%clk 00:12:18]} {[%emt
00:02:50]} 27. g4 {[%clk 00:29:04]} {[%emt 00:04:54]} h5 {[%clk 00:10:56]}
{[%emt 00:01:52]} 28. gxh5 {[%clk 00:27:37]} {[%emt 00:01:56]} Kh7 {[%clk
00:09:20]} {[%emt 00:02:06]} 29. Rc3 {[%clk 00:25:56]} {[%emt 00:02:10]} Nf5
{[%clk 00:07:22]} {[%emt 00:02:28]} 30. Rxc6 {[%clk 00:25:26]} {[%emt
00:01:01]} Nxd4 {[%clk 00:07:38]} {[%emt 00:00:14]} 31. Nxd4 {[%clk 00:25:49]}
{[%emt 00:00:07]} Rxd4 {[%clk 00:08:07]} {[%emt 00:00:02]} 32. Rc7 {[%clk
00:22:14]} {[%emt 00:04:05]} Rf4 {[%clk 00:08:09]} {[%emt 00:00:28]} 33. R1c2
{[%clk 00:17:45]} {[%emt 00:04:58]} a6 {[%clk 00:02:01]} {[%emt 00:06:39]} 34.
R7c4 {[%clk 00:16:09]} {[%emt 00:02:05]} Rf5 {[%clk 00:01:53]} {[%emt
00:00:38]} 35. f4 {[%clk 00:15:51]} {[%emt 00:00:48]} Rxh5 {[%clk 00:02:02]}
{[%emt 00:00:22]} 36. Ra4 {[%clk 00:15:28]} {[%emt 00:00:51]} g5 {[%clk
00:01:22]} {[%emt 00:01:11]} 37. f5 {[%clk 00:13:05]} {[%emt 00:02:53]} exf5
{[%clk 00:01:20]} {[%emt 00:00:32]} 38. Rf2 {[%clk 00:13:03]} {[%emt 00:00:31]}
f4 {[%clk 00:00:43]} {[%emt 00:01:08]} 39. Rxa6 {[%clk 00:13:09]} {[%emt
00:00:24]} Rd5 {[%clk 00:00:37]} {[%emt 00:00:37]} 40. e6 {[%clk 00:12:05]}
{[%emt 00:01:33]} fxe6 {[%clk 00:00:53]} {[%emt 00:00:14]} 41. Rxe6 {[%clk
00:12:24]} {[%emt 00:00:10]} Rd1+ {[%clk 00:12:47]} {[%emt 00:18:36]} 42. Kg2
{[%clk 00:42:24]} {[%emt 00:00:30]} g4 {[%clk 00:11:13]} {[%emt 00:02:05]} 43.
Rxf4 {[%clk 00:34:13]} {[%emt 00:08:41]} Rd2+ {[%clk 00:10:34]} {[%emt
00:01:08]} 44. Rf2 {[%clk 00:26:13]} {[%emt 00:08:31]} Rxh2+ {[%clk 00:10:33]}
{[%emt 00:00:30]} 45. Kxh2 {[%clk 00:26:38]} {[%emt 00:00:05]} Rxf2+ {[%clk
00:10:55]} {[%emt 00:00:08]} 46. Kg3 {[%clk 00:27:04]} {[%emt 00:00:02]} Rxb2
{[%clk 00:11:19]} {[%emt 00:00:08]} 47. a4 {[%clk 00:24:52]} {[%emt 00:02:41]}
Rb3+ {[%clk 00:07:58]} {[%emt 00:03:50]} 48. Kxg4 {[%clk 00:24:59]} {[%emt
00:00:26]} Rb4+ {[%clk 00:08:15]} {[%emt 00:00:12]} 49. Kf5 {[%clk 00:25:28]}
{[%emt 00:00:02]} Rxa4 {[%clk 00:08:27]} {[%emt 00:00:18]} 50. Re4 {[%clk
00:25:54]} {[%emt 00:00:03]} Rxe4 {[%clk 00:08:49]} {[%emt 00:00:09]} 51. Kxe4
{[%clk 00:26:23]} {[%emt 00:00:01]} 1/2-1/2